fUSD/lending_fUSD_20260218
["ID","MTS","AMOUNT","RATE_DAILY","PERIOD"]
[405902375,1771413057679,-178.151612,0.00018,2]
[405902376,1771413057688,-151.0,0.00018,2]
[405902377,1771413057697,-151.0,0.00018,2]
[405902378,1771413057706,-271.604302,0.00018,2]
[405902379,1771413057715,-151.0,0.00018,2]
[405902380,1771413057724,-151.0,0.00018,2]
[405902381,1771413057733,-157.203134,0.00018,2]
[405902382,1771413057742,-200.0,0.00018,2]
[405902383,1771413057751,-300.0,0.00018,3]
[405902384,1771413057760,-300.0,0.00018,3]
[405902385,1771413057769,-300.0,0.00018,3]
[405902386,1771413057778,-300.0,0.00018,3]
[405902387,1771413057787,-300.0,0.00018,3]
[405902388,1771413057796,-152.0,0.00018,2]
[405902389,1771413057806,-655.73468419,0.00018,2]
[405902390,1771413057819,-47069.0,0.00018,2]
[405902391,1771413057829,-151.0,0.00018,2]
[405902392,1771413057838,-151.0,0.00018,2]
[405902393,1771413057847,-151.0,0.00018,2]
[405902394,1771413057858,-151.0,0.00018,2]
[405902395,1771413057868,-151.0,0.00018,2]
[405902396,1771413057878,-151.0,0.00018,2]
[405902397,1771413057889,-151.0,0.00018,2]
[405902398,1771413057897,-151.0,0.00018,2]
[405902399,1771413057907,-151.0,0.00018,2]
[405902400,1771413057916,-151.0,0.00018,2]
[405902401,1771413057926,-151.0,0.00018,2]
[405902402,1771413057935,-151.0,0.00018,2]
[405902403,1771413057944,-151.0,0.00018,2]
[405902404,1771413057955,-151.0,0.00018,2]
[405902405,1771413057964,-151.0,0.00018,2]
[405902406,1771413057976,-151.0,0.00018,2]
[405902407,1771413057986,-292.950774,0.00018,2]
[405902408,1771413057996,-160.0,0.00018,3]
[405902409,1771413058008,-151.0,0.00018,2]
[405902410,1771413058019,-151.0,0.00018,2]
[405902411,1771413058032,-151.0,0.00018,2]
[405902412,1771413058043,-151.0,0.00018,2]
[405902413,1771413058054,-151.0,0.00018,2]
[405902414,1771413058065,-151.0,0.00018,2]
[405902415,1771413058075,-151.0,0.00018,2]
[405902416,1771413058084,-151.0,0.00018,2]
[405902417,1771413058093,-177.82904373,0.00018,2]
[405902418,1771413058103,-200.0,0.00018,2]
[405902419,1771413058112,-150.0,0.00018,2]
[405902420,1771413058121,-150.0,0.00018,2]
[405902421,1771413058130,-158.584971,0.00018,2]
[405902422,1771413058139,-150.0,0.00018,2]
[405902423,1771413058148,-151.0,0.00018,2]
[405902424,1771413058157,-151.0,0.00018,2]
[405902425,1771413058166,-151.0,0.00018,2]
[405902426,1771413058175,-219.72153389,0.00018,2]
[405902427,1771413058184,-150.0,0.00018,2]
[405902428,1771413058193,-150.0,0.00018,2]
[405902429,1771413058202,-332.18764945,0.00018,2]
[405902430,1771413058211,-303.0,0.00018,2]
[405902431,1771413058220,-2878.81086154,0.00018,2]
[405902432,1771413058228,-160.20385622,0.00018,2]
[405902433,1771413058238,-150.44008389,0.00018,2]
[405902434,1771413058247,-150.0,0.00018,2]
[405902435,1771413058257,-150.0,0.00018,2]
[405902436,1771413058266,-150.0,0.00018,2]
[405902437,1771413058278,-150.0,0.00018,2]
[405902438,1771413058287,-150.0,0.00018,2]
[405902439,1771413058297,-150.0,0.00018,2]
[405902440,1771413058306,-278.178029,0.00018,2]
[405902441,1771413058315,-278.178029,0.00018,2]
[405902442,1771413058325,-278.178029,0.00018,2]
[405902443,1771413058339,-278.178029,0.00018,2]
[405902444,1771413058361,-278.178029,0.00018,2]
[405902445,1771413058378,-278.178029,0.00018,2]
[405902446,1771413058397,-278.178029,0.00018,2]
[405902447,1771413058414,-278.178029,0.00018,2]
[405902448,1771413058430,-278.178029,0.00018,2]
[405902449,1771413058447,-278.178029,0.00018,2]
[405902450,1771413058464,-278.178029,0.00018,2]
[405902451,1771413058481,-278.178029,0.00018,2]
[405902452,1771413058499,-278.178029,0.00018,2]
[405902453,1771413058517,-151.0,0.00018,2]
[405902454,1771413058534,-278.178029,0.00018,2]
[405902455,1771413058550,-151.0,0.00018,2]
[405902456,1771413058562,-278.178029,0.00018,2]
[405902457,1771413058582,-278.178029,0.00018,2]
[405902458,1771413058594,-278.178029,0.00018,2]
[405902459,1771413058611,-278.178029,0.00018,2]
[405902460,1771413058625,-278.178029,0.00018,2]
[405902461,1771413058637,-278.178034,0.00018,2]
[405902462,1771413058651,-151.0,0.00018,2]
[405902463,1771413058665,-151.0,0.00018,2]
[405902464,1771413058679,-151.0,0.00018,2]
[405902465,1771413058698,-151.0,0.00018,2]
[405902466,1771413058711,-2000.0,0.00018,2]
[405902467,1771413058725,-2000.0,0.00018,2]
[405902468,1771413058739,-2000.0,0.00018,2]
[405902469,1771413058753,-2000.0,0.00018,2]
[405902470,1771413058767,-2000.0,0.00018,2]
[405902471,1771413058780,-352.373882,0.00018,2]
[405902472,1771413058795,-352.373882,0.00018,2]
[405902473,1771413058809,-352.373882,0.00018,2]
[405902474,1771413058827,-352.373882,0.00018,2]
[405902475,1771413058841,-352.373882,0.00018,2]
[405902476,1771413058855,-352.373882,0.00018,2]
[405902477,1771413058870,-352.373882,0.00018,2]
[405902478,1771413058884,-352.373882,0.00018,2]
[405902479,1771413058899,-352.373882,0.00018,2]
[405902480,1771413058913,-352.373882,0.00018,2]
[405902481,1771413058926,-352.373882,0.00018,2]
[405902482,1771413058940,-352.373882,0.00018,2]
[405902483,1771413058954,-352.373882,0.00018,2]
[405902484,1771413058968,-352.373882,0.00018,2]
[405902485,1771413058982,-352.373882,0.00018,2]
[405902486,1771413058996,-352.373882,0.00018,2]
[405902487,1771413059010,-352.373882,0.00018,2]
[405902488,1771413059024,-352.373882,0.00018,2]
[405902489,1771413059038,-352.373882,0.00018,2]
[405902490,1771413059052,-352.37389,0.00018,2]
[405902491,1771413059066,-989.0,0.00018,2]
[405902492,1771413059082,-2664.37350588,0.00018,2]
[405902493,1771413059096,-2664.37350588,0.00018,2]
[405902494,1771413059111,-309.0,0.00018,2]
[405902495,1771413059124,-2938.78781609,0.00018,2]
[405902496,1771413059138,-2938.78781609,0.00018,2]
[405902497,1771413059152,-200.0,0.00018,2]
[405902498,1771413059165,-431.76285433,0.00018,2]
[405902499,1771413059179,-200.0,0.00018,2]
[405902500,1771413059192,-815.043959,0.00018,2]
[405902501,1771413059206,-815.043959,0.00018,2]
[405902502,1771413059220,-815.043959,0.00018,2]
[405902503,1771413059234,-815.043959,0.00018,2]
[405902504,1771413059250,-815.043959,0.00018,2]
[405902505,1771413059264,-815.043959,0.00018,2]
[405902506,1771413059279,-815.043959,0.00018,2]
[405902507,1771413059292,-815.043959,0.00018,2]
[405902508,1771413059306,-815.043959,0.00018,2]
[405902509,1771413059320,-815.043959,0.00018,2]
[405902510,1771413059335,-815.043959,0.00018,2]
[405902511,1771413059349,-815.043959,0.00018,2]
[405902512,1771413059363,-815.043959,0.00018,2]
[405902513,1771413059378,-815.043959,0.00018,2]
[405902514,1771413059392,-815.043959,0.00018,2]
[405902515,1771413059406,-815.043959,0.00018,2]
[405902516,1771413059420,-815.043959,0.00018,2]
[405902517,1771413059433,-815.043959,0.00018,2]
[405902518,1771413059447,-815.043959,0.00018,2]
[405902519,1771413059461,-815.043956,0.00018,2]
[405902520,1771413059476,-576.128709,0.00018,2]
[405902521,1771413059489,-576.128709,0.00018,2]
[405902522,1771413059503,-576.128709,0.00018,2]
[405902523,1771413059518,-576.128709,0.00018,2]
[405902524,1771413059532,-576.128709,0.00018,2]
[405902525,1771413059546,-576.128709,0.00018,2]
[405902526,1771413059561,-576.128709,0.00018,2]
[405902527,1771413059576,-576.128709,0.00018,2]
[405902528,1771413059590,-576.128709,0.00018,2]
[405902529,1771413059604,-576.128709,0.00018,2]
[405902530,1771413059618,-576.128709,0.00018,2]
[405902531,1771413059632,-576.128709,0.00018,2]
[405902532,1771413059646,-576.128709,0.00018,2]
[405902533,1771413059661,-576.128709,0.00018,2]
[405902534,1771413059674,-576.128709,0.00018,2]
[405902535,1771413059688,-576.128709,0.00018,2]
[405902536,1771413059702,-576.128709,0.00018,2]
[405902537,1771413059715,-576.128709,0.00018,2]
[405902538,1771413059728,-576.128709,0.00018,2]
[405902539,1771413059742,-576.128715,0.00018,2]
[405902540,1771413059756,-151.0,0.00018,2]
[405902541,1771413059769,-151.0,0.00018,2]
[405902542,1771413059783,-1296.42762478,0.00018,2]
[405902543,1771413059797,-200.0,0.00018,2]
[405902544,1771413059810,-472.53512,0.00018,2]
[405902545,1771413059828,-472.53512,0.00018,2]
[405902546,1771413059842,-472.53512,0.00018,2]
[405902547,1771413059855,-472.53512,0.00018,2]
[405902548,1771413059870,-472.53512,0.00018,2]
[405902549,1771413059884,-472.53512,0.00018,2]
[405902550,1771413059900,-472.53512,0.00018,2]
[405902551,1771413059914,-472.53512,0.00018,2]
[405902552,1771413059929,-472.53512,0.00018,2]
[405902553,1771413059938,-472.53512,0.00018,2]
[405902554,1771413059947,-472.53512,0.00018,2]
[405902555,1771413059957,-472.53512,0.00018,2]
[405902556,1771413059966,-472.53512,0.00018,2]
[405902557,1771413059975,-472.53512,0.00018,2]
[405902558,1771413059984,-472.53512,0.00018,2]
[405902559,1771413059994,-472.53512,0.00018,2]
[405902560,1771413060003,-472.53512,0.00018,2]
[405902561,1771413060012,-472.53512,0.00018,2]
[405902562,1771413060021,-472.53512,0.00018,2]
[405902563,1771413060030,-472.535127,0.00018,2]
[405902564,1771413060039,-248.0,0.00018026,2]
[405902565,1771413060049,-361.41240175,0.00018027,2]
[405902566,1771413060058,-500.0,0.0001805,2]
[405902567,1771413060067,-500.0,0.0001805,2]
[405902568,1771413060078,-500.0,0.0001805,5]
[405902569,1771413060087,-500.0,0.0001805,2]
[405902570,1771413060096,-500.0,0.0001805,2]
[405902571,1771413060105,-248.0,0.00018074,2]
[405902572,1771413060114,-3207.6,0.00018082,2]
[405902573,1771413060124,-841.0,0.00018082,2]
[405902574,1771413060133,-1000.0,0.00018082,2]
[405902575,1771413060143,-1783.74952554,0.000181,2]
[405902576,1771413060151,-248.0,0.00018109,2]
[405902577,1771413060160,-152.0,0.00018122,13]
[405902578,1771413060599,-200.0,0.0001818,2]
[405902579,1771413060628,-200.0,0.0001818,2]
[405902580,1771413060649,-200.0,0.0001818,2]
[405902581,1771413060661,-200.0,0.0001818,2]
[405902582,1771413060671,-248.0,0.00018184,2]
[405902583,1771413060681,-177.82904373,0.00018185,2]
[405902584,1771413060690,-219.72153389,0.00018185,2]
[405902585,1771413060700,-332.18764945,0.00018185,2]
[405902586,1771413060709,-248.0,0.00018203,2]
[405902587,1771413060720,-150.0,0.00018204,2]
[405902588,1771413060730,-150.0,0.00018218,2]
[405902589,1771413060739,-476.710647,0.00018219,7]
[405902590,1771413060748,-1161.183173,0.00018219,7]
[405902591,1771413060758,-150.0,0.00018223,2]
[405902592,1771413060769,-1105.0,0.00018233,2]
[405902593,1771413060779,-150.0,0.00018235,2]
[405902594,1771413060789,-248.0,0.00018235,2]
[405902595,1771413060799,-248.0,0.00018282,2]
[405902596,1771413060809,-260.4103811,0.00018305,2]
[405902597,1771413060823,-300.0,0.00018355,2]
[405902598,1771413060835,-300.0,0.00018355,2]
[405902599,1771413060844,-666.0,0.00018355,2]
[405902600,1771413060855,-300.0,0.00018355,2]
[405902601,1771413060864,-3207.6,0.00018356,2]
[405902602,1771413060873,-841.0,0.00018356,2]
[405902603,1771413060883,-86859.14,0.00018356,2]
[405902604,1771413060893,-1000.0,0.00018356,2]
[405902605,1771413060903,-150.0,0.0001836,2]
[405902606,1771413060912,-150.0,0.0001836,2]
[405902607,1771413060922,-150.0,0.0001836,2]
[405902608,1771413060934,-150.0,0.0001836,2]
[405902609,1771413060945,-150.0,0.0001836,2]
[405902610,1771413060954,-182.0,0.0001836,2]
[405902611,1771413060964,-200.0,0.00018362,2]
[405902612,1771413060973,-200.0,0.00018362,2]
[405902613,1771413060983,-200.0,0.00018362,2]
[405902614,1771413060992,-200.0,0.00018362,2]
[405902615,1771413061002,-177.82904373,0.0001837,2]
[405902616,1771413061011,-219.72153389,0.0001837,2]
[405902617,1771413061020,-332.18764945,0.0001837,2]
[405902618,1771413061029,-150.0,0.00018374,2]
[405902619,1771413061039,-500.0,0.000184,2]
[405902620,1771413061048,-169.55112639,0.000184,2]
[405902621,1771413061057,-150.0,0.00018407,2]
[405902622,1771413061068,-150.0,0.00018416,2]
[405902623,1771413061081,-150.0,0.00018436,2]
[405902624,1771413061090,-150.0,0.00018447,2]
[405902625,1771413061099,-150.0,0.00018447,2]
[405902626,1771413061108,-150.0,0.0001847,2]
[405902627,1771413061117,-152.0,0.00018471,3]
[405902628,1771413061127,-2000.0,0.000185,2]
[405902629,1771413061137,-251.21842457,0.000185,2]
[405902630,1771413061146,-300.24368491,0.000185,2]
[405902631,1771413061155,-232.53655274,0.000185,2]
[405902632,1771413061165,-428.27570222,0.000185,2]
[405902633,1771413061174,-266.0812255,0.000185,2]
[405902634,1771413061184,-319.29747059,0.000185,2]
[405902635,1771413061194,-282.58521065,0.000185,2]
[405902636,1771413061203,-500.0,0.000185,2]
[405902637,1771413061212,-1147.19,0.0001852,2]
[405902638,1771413061221,-300.0,0.00018539,2]
[405902639,1771413061230,-300.0,0.00018539,2]
[405902640,1771413061239,-666.0,0.00018539,2]
[405902641,1771413061248,-300.0,0.00018539,2]
[405902642,1771413061257,-168.0,0.0001854,2]
[405902643,1771413061266,-47069.0,0.0001854,2]
[405902644,1771413061275,-200.0,0.00018545,2]
[405902645,1771413061285,-200.0,0.00018545,2]
[405902646,1771413061294,-200.0,0.00018545,2]
[405902647,1771413061303,-200.0,0.00018545,2]
[405902648,1771413061313,-248.0,0.00018545,2]
[405902649,1771413061322,-1400.0,0.00018548,7]
[405902650,1771413061334,-177.82904373,0.00018555,2]
[405902651,1771413061344,-219.72153389,0.00018555,2]
[405902652,1771413061353,-332.18764945,0.00018555,2]
[405902653,1771413061363,-248.0,0.00018563,2]
[405902654,1771413061372,-248.0,0.00018568,2]
[405902655,1771413061382,-150.0,0.00018611,2]
[405902656,1771413061391,-152.0,0.00018619,14]
[405902657,1771413061400,-152.0,0.00018619,8]
[405902658,1771413061410,-2443.926682,0.0001862,2]
[405902659,1771413061419,-3207.6,0.0001863,2]
[405902660,1771413061429,-841.0,0.0001863,2]
[405902661,1771413061438,-1000.0,0.0001863,2]
[405902662,1771413061447,-575.0,0.00018634,4]
[405902663,1771413061457,-248.0,0.00018637,2]
[405902664,1771413061466,-150.0,0.00018654,2]
[405902665,1771413061475,-150.0,0.0001867,2]
[405902666,1771413061484,-150.0,0.00018679,2]
[405902667,1771413061494,-150.0,0.00018705,2]
[405902668,1771413061503,-248.0,0.00018721,2]
[405902669,1771413061512,-500.0,0.00018721,30]
[405902670,1771413061521,-500.0,0.00018721,30]
[405902671,1771413061531,-500.0,0.00018721,30]
[405902672,1771413061541,-617.08408408,0.00018721,30]
[405902673,1771413061551,-248.0,0.00018725,2]
[405902674,1771413061560,-200.0,0.00018731,2]
[405902675,1771413061570,-200.0,0.00018731,2]
[405902676,1771413061582,-200.0,0.00018731,2]
[405902677,1771413061593,-200.0,0.00018731,2]
[405902678,1771413061602,-177.82904373,0.0001874,2]
[405902679,1771413061612,-219.72153389,0.0001874,2]
[405902680,1771413061622,-332.18764945,0.0001874,2]
[405902681,1771413061631,-248.0,0.00018744,2]
[405902682,1771413061640,-150.0,0.00018748,2]
[405902683,1771413061650,-215.3300782,0.000188,2]
[405902684,1771413061660,-150.0,0.00018814,2]
[405902685,1771413061669,-150.0,0.00018833,2]
[405902686,1771413061678,-248.0,0.00018842,2]
[405902687,1771413061687,-270.0455652,0.00018853,2]
[405902688,1771413061696,-350.0,0.0001886,3]
[405902689,1771413061706,-150.0,0.00018872,2]
[405902690,1771413061715,-150.0,0.00018894,2]
[405902691,1771413061724,-150.0,0.00018894,2]
[405902692,1771413061734,-168.06204034,0.00018898,2]
[405902693,1771413061743,-300.0,0.00018899,2]
[405902694,1771413061755,-300.0,0.00018899,2]
[405902695,1771413061775,-666.0,0.00018899,2]
[405902696,1771413061785,-300.0,0.00018899,2]
[405902697,1771413061795,-301507.44475258,0.000189,3]
[405902698,1771413061804,-202432.54027391,0.000189,3]
[405902699,1771413061817,-28085.1710077,0.000189,3]
[405902700,1771413061830,-992.2611,0.000189,2]
[405902701,1771413061840,-200.0,0.000189,7]
[405902702,1771413061850,-200.0,0.000189,7]
[405902703,1771413061862,-3207.6,0.00018904,2]
[405902704,1771413061873,-841.0,0.00018904,2]
[405902705,1771413061883,-1000.0,0.00018904,2]
[405902706,1771413061893,-1533.45566229,0.00018904,2]
[405902707,1771413061903,-177.82904373,0.00018925,2]
[405902708,1771413061912,-219.72153389,0.00018925,2]
[405902709,1771413061923,-332.18764945,0.00018925,2]
[405902710,1771413061933,-150.0,0.0001894,2]
[405902711,1771413061943,-350.0,0.0001895,4]
[405902712,1771413061953,-248.0,0.00018964,2]
[405902713,1771413061962,-300.0,0.00018999,2]
[405902714,1771413061972,-300.0,0.00018999,2]
[405902715,1771413061983,-666.0,0.00018999,2]
[405902716,1771413061992,-300.0,0.00018999,2]
[405902717,1771413062002,-1000.0,0.00019,2]
[405902718,1771413062010,-287.75929128,0.00019,2]
[405902719,1771413062020,-160.0,0.00019,2]
[405902720,1771413062029,-374.18317846,0.00019,5]
[405902721,1771413062038,-284.67297913,0.00019,2]
[405902722,1771413062047,-408.85583773,0.00019,2]
[405902723,1771413062057,-1560.59173327,0.00019,2]
[405902724,1771413062066,-5181.72010553,0.00019,2]
[405902725,1771413062079,-672.56232672,0.00019,2]
[405902726,1771413062088,-160.88604519,0.00019,2]
[405902727,1771413062098,-224.18744224,0.00019,2]
[405902728,1771413062107,-350.0,0.00019,2]
[405902729,1771413062116,-173.62051493,0.00019,3]
[405902730,1771413062125,-2787.98610685,0.00019,2]
[405902731,1771413062134,-2502.23985575,0.00019,2]
[405902732,1771413062146,-2581.0,0.00019,2]
[405902733,1771413062156,-25608.11413778,0.00019,2]
[405902734,1771413062166,-248.0,0.00019005,2]
[405902735,1771413062176,-359.49104528,0.0001901,7]
[405902736,1771413062186,-150.0,0.00019018,2]
[405902737,1771413062195,-200.0,0.0001905,2]
[405902738,1771413062204,-213.86079594,0.0001905,2]
[405902739,1771413062214,-300.0,0.00019079,2]
[405902740,1771413062225,-300.0,0.00019079,2]
[405902741,1771413062234,-666.0,0.00019079,2]
[405902742,1771413062244,-300.0,0.00019079,2]
[405902743,1771413062252,-47069.0,0.0001908,2]
[405902744,1771413062263,-150.0,0.00019091,2]
[405902745,1771413062273,-500.0,0.00019096,7]
[405902746,1771413062283,-500.0,0.00019096,7]
[405902747,1771413062292,-300.0,0.00019109,2]
[405902748,1771413062302,-300.0,0.00019109,2]
[405902749,1771413062312,-731.87320674,0.00019109,2]
[405902750,1771413062322,-1075.65169166,0.0001911,2]
[405902751,1771413062333,-1117.27133676,0.0001911,2]
[405902752,1771413062342,-1138.13851847,0.0001911,2]
[405902753,1771413062351,-1035.25785763,0.0001911,2]
[405902754,1771413062360,-1109.13169672,0.0001911,2]
[405902755,1771413062370,-1064.91319369,0.0001911,2]
[405902756,1771413062379,-1071.35159158,0.0001911,2]
[405902757,1771413062389,-1030.16743962,0.0001911,2]
[405902758,1771413062399,-1068.01201346,0.0001911,2]
[405902759,1771413062408,-1065.19061611,0.0001911,2]
[405902760,1771413062417,-1006.91572701,0.0001911,2]
[405902761,1771413062426,-1019.92839897,0.0001911,2]
[405902762,1771413062436,-1057.77547201,0.0001911,2]
[405902763,1771413062446,-1140.18196646,0.0001911,2]
[405902764,1771413062455,-1132.4515194,0.0001911,2]
[405902765,1771413062465,-1015.2338385,0.0001911,2]
[405902766,1771413062474,-1010.5168847,0.0001911,2]
[405902767,1771413062484,-1056.6612211,0.0001911,2]
[405902768,1771413062494,-1137.33523558,0.0001911,2]
[405902769,1771413062503,-1116.30694066,0.0001911,2]
[405902770,1771413062512,-1010.62686593,0.0001911,2]
[405902771,1771413062521,-1359.54606596,0.0001911,2]
[405902772,1771413062531,-177.82904373,0.0001911,2]
[405902773,1771413062540,-219.72153389,0.0001911,2]
[405902774,1771413062549,-332.18764945,0.0001911,2]
[405902775,1771413062560,-152.0,0.00019115,15]
[405902776,1771413062569,-150.0,0.00019117,2]
[405902777,1771413062581,-150.0,0.00019122,2]
[405902778,1771413062591,-194.72792766,0.00019122,2]
[405902779,1771413062602,-1105.0,0.00019145,2]
[405902780,1771413062618,-150.0,0.00019174,2]
[405902781,1771413062627,-300.0,0.00019177,2]
[405902782,1771413062636,-319.90825596,0.00019177,2]
[405902783,1771413062646,-3207.6,0.00019178,2]
[405902784,1771413062655,-500.0,0.00019178,30]
[405902785,1771413062665,-500.0,0.00019178,30]
[405902786,1771413062674,-500.0,0.00019178,30]
[405902787,1771413062683,-500.0,0.00019178,30]
[405902788,1771413062693,-500.0,0.00019178,30]
[405902789,1771413062703,-500.0,0.00019178,30]
[405902790,1771413062712,-500.0,0.00019178,30]
[405902791,1771413062721,-500.0,0.00019178,30]
[405902792,1771413062730,-500.0,0.00019178,30]
[405902793,1771413062740,-453.28492001,0.00019178,30]
[405902794,1771413062749,-3000.0,0.00019178,2]
[405902795,1771413062758,-2233.04228689,0.00019178,7]
[405902796,1771413062767,-841.0,0.00019178,2]
[405902797,1771413062777,-1222.47,0.00019178,30]
[405902798,1771413062787,-20189.52,0.00019178,2]
[405902799,1771413062796,-151.0,0.00019178,2]
[405902800,1771413062805,-151.0,0.00019178,2]
[405902801,1771413062817,-160.120522,0.00019178,2]
[405902802,1771413062830,-151.0,0.00019178,2]
[405902803,1771413062840,-151.0,0.00019178,2]
[405902804,1771413062850,-151.0,0.00019178,2]
[405902805,1771413062862,-235.93633334,0.00019178,2]
[405902806,1771413062871,-151.0,0.00019178,2]
[405902807,1771413062880,-151.0,0.00019178,2]
[405902808,1771413062891,-151.0,0.00019178,2]
[405902809,1771413062900,-151.0,0.00019178,2]
[405902810,1771413062910,-151.0,0.00019178,2]
[405902811,1771413062919,-163.17433,0.00019178,2]
[405902812,1771413062928,-1603.959516,0.00019178,2]
[405902813,1771413062938,-1603.959516,0.00019178,2]
[405902814,1771413062947,-1603.959516,0.00019178,2]
[405902815,1771413062956,-1603.959516,0.00019178,2]
[405902816,1771413062966,-1603.959516,0.00019178,2]
[405902817,1771413062976,-1603.959516,0.00019178,2]
[405902818,1771413062985,-1603.959516,0.00019178,2]
[405902819,1771413062994,-1603.959516,0.00019178,2]
[405902820,1771413063004,-1603.959516,0.00019178,2]
[405902821,1771413063014,-1603.959516,0.00019178,2]
[405902822,1771413063023,-1603.959516,0.00019178,2]
[405902823,1771413063034,-1603.959516,0.00019178,2]
[405902824,1771413063043,-1603.959516,0.00019178,2]
[405902825,1771413063053,-1603.959516,0.00019178,2]
[405902826,1771413063064,-1603.959516,0.00019178,2]
[405902827,1771413063074,-1603.959516,0.00019178,2]
[405902828,1771413063086,-1603.959516,0.00019178,2]
[405902829,1771413063097,-1603.959516,0.00019178,2]
[405902830,1771413063106,-1603.959516,0.00019178,2]
[405902831,1771413063115,-1603.959506,0.00019178,2]
[405902832,1771413063126,-330.877147,0.00019178,2]
[405902833,1771413063135,-330.877147,0.00019178,2]
[405902834,1771413063145,-330.877147,0.00019178,2]
[405902835,1771413063155,-330.877147,0.00019178,2]
[405902836,1771413063164,-330.877147,0.00019178,2]
[405902837,1771413063173,-330.877147,0.00019178,2]
[405902838,1771413063183,-330.877147,0.00019178,2]
[405902839,1771413063193,-330.877147,0.00019178,2]
[405902840,1771413063202,-330.877147,0.00019178,2]
[405902841,1771413063212,-330.877147,0.00019178,2]
[405902842,1771413063222,-330.877147,0.00019178,2]
[405902843,1771413063231,-330.877147,0.00019178,2]
[405902844,1771413063241,-330.877147,0.00019178,2]
[405902845,1771413063250,-330.877147,0.00019178,2]
[405902846,1771413063259,-330.877147,0.00019178,2]
[405902847,1771413063270,-330.877147,0.00019178,2]
[405902848,1771413063279,-330.877147,0.00019178,2]
[405902849,1771413063289,-330.877147,0.00019178,2]
[405902850,1771413063299,-330.877147,0.00019178,2]
[405902851,1771413063309,-330.877153,0.00019178,2]
[405902852,1771413063319,-152.5646589,0.00019178,2]
[405902853,1771413063331,-1000.0,0.00019178,2]
[405902854,1771413063342,-150.0,0.00019178,2]
[405902855,1771413063351,-350.0,0.00019181,2]
[405902856,1771413063362,-19897.10315506,0.000192,7]
[405902857,1771413063371,-150.0,0.00019221,4]
[405902858,1771413063380,-942.0,0.00019229,5]
[405902859,1771413063390,-1146.0,0.00019229,5]
[405902860,1771413063400,-150.0,0.00019249,4]
[405902861,1771413063410,-408.85583773,0.00019269,5]
[405902862,1771413063420,-575.0,0.0001928,4]
[405902863,1771413063430,-177.82904373,0.00019295,4]
[405902864,1771413063439,-219.72153389,0.00019295,4]
[405902865,1771413063449,-332.18764945,0.00019295,4]
[405902866,1771413063459,-228.69657264,0.000193,2]
[405902867,1771413063468,-150.0,0.00019309,4]
[405902868,1771413063478,-150.0,0.00019309,4]
[405902869,1771413063487,-672.56232672,0.00019312,5]
[405902870,1771413063497,-150.0,0.00019341,4]
[405902871,1771413063507,-150.0,0.00019341,4]
[405902872,1771413063516,-150.0,0.00019357,4]
[405902873,1771413063526,-152.0,0.00019364,5]
[405902874,1771413063535,-350.0,0.00019385,3]